[Event "1000GM Memorial Day NY IM-B 2023"]
[Site "New York"]
[Date "2023.05.29"]
[Round "7.4"]
[White "Hebbar, Eshaan"]
[Black "Luo, Terry"]
[Result "0-1"]
[ECO "E92"]
[WhiteElo "1969"]
[BlackElo "2321"]
[Annotator "TA"]
[PlyCount "100"]
[EventDate "2023.05.23"]
[EventType "schev"]
[EventCountry "USA"]
[SourceTitle "playchess.com"]
[Source "ChessBase"]
[SourceQuality "1"]
[TimeControl "5400+30"]

{[%evp 23,100,26,46,50,35,39,51,47,49,-22,-22,-22,-22,-127,-118,-141,-120,-162,-141,-341,-330,-335,-306,-304,-174,-164,-98,-196,0,0,0,0,0,0,0,0,0,0,0,0,0,8,0,0,87,90,96,93,161,80,80,0,0,0,0,0,0,0,0,0,0,-253,-253,-253,-245,-295,-285,-356,-295,-279,-267,-295,-295,-382,-295,-436,-422,-559,-559]} 1. d4 {[%emt 0:00:04]} Nf6 {[%emt 0:00:05]} 2. c4 {[%emt 0:00:08]} g6 {[%emt 0:00:04]} 3. Nc3 {[%emt 0:00:06]} Bg7 {[%emt 0:00:05]} 4. e4 {[%emt 0:00:07]} d6 {[%emt 0:00:02]} 5. Nf3 {[%emt 0:00:07]} O-O {[%emt 0:00:05]} 6. Be2 {[%emt 0:00:05]} e5 {[%emt 0:00:03]} 7. d5 {[%emt 0:00:05]} a5 {[%emt 0:00:35]} 8. O-O {[%emt 0:00:09]} Na6 {[%emt 0:00:40]} 9. Be3 {[%emt 0:00:08]} Ng4 {[%emt 0:00:20]} 10. Bg5 {[%emt 0:00:07][%cal Be3g5,Bg5h4,Bh4f2][%mdl 32]} f6 {[%emt 0:00:03]} 11. Bh4 {[%emt 0:00:31]} h5 {[%emt 0:00:36]} 12. Ne1 {[%emt 0:01:50]} Nc5 {[%emt 0:01:25]} 13. h3 {[%emt 0:01:01] E92: King's Indian: Classical: 6 Be2 e5: 7 dxe5, 7 Be3 and Petrosian System without 7...Nbd7.} Nh6 {[%emt 0:00:31]} 14. f3 {[%emt 0:00:09] [#]} g5 $146 {[%emt 0:02:03]} ({Predecessor:} 14... Bd7 15. Nd3 b6 16. Nxc5 bxc5 17. Bd3 Qc8 18. Bc2 f5 19. Bf2 fxe4 20. Nxe4 Nf5 {1-0 Granz,T (2116)-Shabaev,V (2164) EU-ch 2020 pr04 email}) 15. Bf2 {[%emt 0:00:15] White is slightly better.} f5 {[%emt 0:01:09][%cal Bf6f5,Bf5f4][%mdl 32]} 16. Nd3 {[%emt 0:02:43]} ({Better is} 16. exf5 $1 $14 Nxf5 17. Nd3) 16... Nxd3 $11 {[%emt 0:01:31]} 17. Qxd3 {[%emt 0:04:07]} f4 $1 {[%emt 0:05:02]} 18. Qd1 {[%emt 0:14:15] [#]} (18. Rfd1 $11 {keeps the balance.}) 18... g4 $1 $17 {[%emt 0:08:32][%mdl 512]} 19. fxg4 {[%emt 0:05:43]} hxg4 {[%emt 0:00:13]} 20. hxg4 {[%emt 0:00:08]} Qg5 {[%emt 0:02:45][%cal Rh6g4]} 21. Nb5 $2 {[%emt 0:01:02]} (21. Re1 $17 {was necessary.}) 21... Rf7 $19 {[%emt 0:13:52]} 22. c5 {[%emt 0:00:31]} Bf8 {[%emt 0:01:30]} 23. cxd6 {[%emt 0:00:37]} cxd6 {[%emt 0:00:03]} (23... Nxg4 $142 24. Qb3 (24. Nxc7 $2 {loses.} Qh5 $19) 24... cxd6) 24. Rc1 {[%emt 0:11:21]} Bxg4 {[%emt 0:01:06]} (24... Rg7 $19 {[%cal Rh6g4]} 25. Rc7 Be7) 25. Rc3 {[%emt 0:00:33]} (25. Bf3 $17) 25... Bd7 $2 {[%emt 0:07:55]} (25... Rg7 $19 {Hoping for ...Bxe2.} 26. Bxg4 Nxg4) 26. Nc7 $1 $11 {[%emt 0:07:31]} Rg7 {[%emt 0:15:17][%csl Gg7][%cal Rg5g2]} 27. Bf3 {[%emt 0:01:17]} (27. Nxa8 $2 Qxg2#) 27... Rc8 {[%emt 0:02:17]} 28. Ne6 {[%emt 0:00:12]} Bxe6 {[%emt 0:00:03]} 29. dxe6 {[%emt 0:00:06]} Rxc3 {[%emt 0:00:03]} 30. bxc3 {[%emt 0:00:02]} Ng4 {[%emt 0:00:14]} 31. Bxg4 {[%emt 0:07:53]} Qxg4 {[%emt 0:00:01]} 32. Qxg4 {[%emt 0:00:03]} Rxg4 {[%emt 0:00:02][%mdl 4096] Endgame KRB-KRB} 33. Rb1 {[%emt 0:00:02]} Rg6 {[%emt 0:09:20]} (33... Rg7 $1 $11) 34. Rxb7 $16 {[%emt 0:00:51] e7 is the strong threat.} Rxe6 {[%emt 0:00:02] [#]} 35. a4 $1 {[%emt 0:03:12]} Re8 {[%emt 0:02:21]} (35... Rg6 $16) 36. Bb6 $18 {[%emt 0:00:27][%cal Og1f1]} Rc8 {[%emt 0:01:54]} 37. Rc7 {[%emt 0:00:15]} (37. Bc7 $16) 37... Rb8 $11 {[%emt 0:00:37]} 38. Bxa5 {[%emt 0:00:26] Bb4 would be deadly.} Ra8 {[%emt 0:00:11]} 39. Bb4 {[%emt 0:00:26] Strongly threatening a5.} Rxa4 {[%emt 0:00:04]} 40. Rc6 {[%emt 0:00:41]} Ra1+ {[%emt 0:02:11]} 41. Kf2 {[%emt 0:00:07]} Ra2+ {[%emt 0:00:58][%cal Ba1a2,Ba2g2,Bg2g3,Bg3d3,Bd3d4][%mdl 96] Deflection} 42. Ke1 $2 {[%emt 0:02:15][%mdl 8192]} (42. Kf3 $11 {and White stays safe.}) 42... Rxg2 $19 {[%emt 0:01:04]} 43. Kf1 {[%emt 0:03:58]} Rg3 {[%emt 0:02:01]} 44. c4 {[%emt 0:01:10]} Rd3 {[%emt 0:01:13]} 45. Kf2 {[%emt 0:03:51]} Rd4 {[%emt 0:01:35]} 46. Kf3 {[%emt 0:01:04]} Kf7 {[%emt 0:00:08]} 47. Rc7+ {[%emt 0:05:13] [#]} Ke6 $1 {[%emt 0:00:21]} 48. Ba5 {[%emt 0:02:42]} Be7 {[%emt 0:00:54]} 49. Rc8 {[%emt 0:01:16]} (49. Be1 $142) 49... Rd3+ {[%emt 0:00:18]} 50. Kf2 {[%emt 0:00:08]} Bh4+ {[%emt 0:00:44] Weighted Error Value: White=0.45/Black=0.21 (precise)} 0-1

[Event "1000GM Memorial Day NY IM-B 2023"]
[Site "New York"]
[Date "2023.05.29"]
[Round "7.5"]
[White "Nakada, Akira"]
[Black "Bisiriyu-Salam, Oluwaseun"]
[Result "1-0"]
[ECO "A18"]
[WhiteElo "2321"]
[BlackElo "2011"]
[Annotator "TA"]
[PlyCount "49"]
[EventDate "2023.05.23"]
[EventType "schev"]
[EventCountry "USA"]
[SourceTitle "playchess.com"]
[Source "ChessBase"]
[SourceQuality "1"]
[TimeControl "5400+30"]

{[%evp 19,49,13,21,0,53,56,108,85,129,59,554,404,556,480,547,543,1481,1481,1396,1128,1301,958,1112,1104,1084,1079,2629,2350,29989,29990,29992,29993]} 1. c4 {[%emt 0:01:54]} Nf6 {[%emt 0:07:19]} 2. Nc3 {[%emt 0:00:07]} e6 {[%emt 0:00:16]} 3. e4 {[%emt 0:00:12]} d5 {[%emt 0:00:29]} 4. e5 {[%emt 0:00:07]} d4 {[%emt 0:00:12]} 5. exf6 {[%emt 0:00:07]} dxc3 {[%emt 0:00:25]} 6. bxc3 {[%emt 0:00:06]} Qxf6 {[%emt 0:00:17]} 7. d4 {[%emt 0:00:07]} c5 {[%emt 0:00:19]} 8. Nf3 {[%emt 0:01:03]} h6 {[%emt 0:00:15]} 9. Bd3 {[%emt 0:03:51]} cxd4 {[%emt 0:01:37]} 10. cxd4 {[%emt 0:00:57]} Bb4+ {[%emt 0:00:19]} 11. Kf1 {[%emt 0:00:53] [#] And now Qa4+ would win. A18: English Opening: Flohr-Mikenas System (1 c4 Nf6 2 Nc3 e6 3 e4).} O-O {[%emt 0:01:45]} ({Black should play} 11... Bc3 $1 $11 12. Rb1 Nc6) 12. Rb1 {[%emt 0:03:51]} Bd6 {[%emt 0:13:12]} (12... Qe7 $14) 13. Qe2 $16 {[%emt 0:01:12] [#] Threatens to win with g4. White is better.} Nd7 $146 {[%emt 0:06:06]} ({Predecessor:} 13... Rd8 14. Bb2 Qe7 15. Rd1 Nc6 16. Bb1 Bd7 17. h4 b5 18. d5 Na5 19. cxb5 exd5 {1-0 Lalic,B (2575)-Medic,M (2260) Pula op 10th 1996}) 14. Qe4 $40 {[%emt 0:25:45][%mdl 128] White mounts an attack.} (14. g4 $16) 14... Rd8 $2 {[%emt 0:15:50][%mdl 8192]} (14... Qf5 $14) 15. c5 {[%emt 0:01:52] Qh7+ would be deadly.} Bc7 {[%emt 0:02:16][%cal Of6f5]} 16. Qh7+ {[%emt 0:00:44]} Kf8 {[%emt 0:00:18]} 17. Ba3 {[%emt 0:01:27][%cal Bc1a3,Ba3f8,Bf8d6][%mdl 32] Strongly threatening c6+.} Ke8 {[%emt 0:07:00] [#]} 18. c6 $1 {[%emt 0:03:43][%mdl 512]} Nf8 {[%emt 0:18:56]} 19. cxb7 {[%emt 0:01:37]} Rb8 {[%emt 0:09:57]} 20. bxc8=Q {[%emt 0:02:11]} Rxb1+ {[%emt 0:01:23]} 21. Bxb1 {[%emt 0:00:11]} Rxc8 {[%emt 0:01:01]} 22. Bxf8 {[%emt 0:01:20]} Bd6 {[%emt 0:01:11]} 23. Bxd6 {[%emt 0:01:56] Threatening mate with Ne5.} Rc1+ {[%emt 0:00:52]} 24. Ke2 {[%emt 0:01:07]} Rxh1 {[%emt 0:11:15]} 25. Ne5 {[%emt 0:00:15] Black got outplayed after the opening.   Weighted Error Value: White=0.31/Black=1.53} 1-0

[Event "1000GM Memorial Day NY IM-B 2023"]
[Site "New York"]
[Date "2023.05.29"]
[Round "7.6"]
[White "Espinosa, Pedro"]
[Black "Chen, Justin"]
[Result "1/2-1/2"]
[ECO "D41"]
[WhiteElo "2229"]
[BlackElo "2333"]
[Annotator "TA"]
[PlyCount "52"]
[EventDate "2023.05.23"]
[EventType "schev"]
[EventCountry "USA"]
[SourceTitle "playchess.com"]
[Source "ChessBase"]
[SourceQuality "1"]
[TimeControl "5400+30"]

{[%evp 26,38,0,0,19,7,0,0,0,0,0,0,14,0,3]} 1. d4 {[%emt 0:00:01]} Nf6 {[%emt 0:00:12]} 2. c4 {[%emt 0:00:12]} e6 {[%emt 0:00:08]} 3. Nf3 {[%emt 0:00:12]} d5 {[%emt 0:00:17]} 4. Nc3 {[%emt 0:00:16]} c5 {[%emt 0:00:05]} 5. cxd5 {[%emt 0:00:16]} Nxd5 {[%emt 0:00:04]} 6. e4 {[%emt 0:00:08]} Nxc3 {[%emt 0:00:04]} 7. bxc3 {[%emt 0:00:06]} cxd4 {[%emt 0:00:03]} 8. cxd4 {[%emt 0:00:05]} Bb4+ {[%emt 0:00:02]} 9. Bd2 {[%emt 0:00:08]} Bxd2+ {[%emt 0:00:04]} 10. Qxd2 {[%emt 0:00:05]} O-O {[%emt 0:00:05]} 11. Bc4 {[%emt 0:00:20]} Nd7 {[%emt 0:00:09][%cal Bb8d7,Bd7f6,Bf6h5][%mdl 32]} 12. O-O {[%emt 0:00:22]} b6 {[%emt 0:00:04]} 13. Rad1 {[%emt 0:00:14]} Bb7 {[%emt 0:00:05]} 14. Rfe1 {[%emt 0:00:05] The position is equal.} Rc8 {[%emt 0:00:33] D41: Queen's Gambit Declined: Semi-Tarrasch with 5 cxd5.} 15. Bb3 {[%emt 0:00:01]} Re8 {[%emt 0:00:08]} 16. h3 {[%emt 0:03:15]} Nf6 {[%emt 0:00:18]} 17. Qf4 {[%emt 0:02:23][%cal Od4d5]} Nh5 {[%emt 0:00:20]} 18. Qh2 {[%emt 0:02:01]} h6 {[%emt 0:01:36]} 19. d5 {[%emt 0:11:26]} exd5 {[%emt 0:01:15] [#] An uneventful encounter.   Weighted Error Value: White=0.04 (flawless) /Black=0.00 (flawless)} {Predecessor:} 20. e5 $146 g6 21. Nd4 Ng7 22. Nb5 Nf5 23. g4 a6 24. Qf4 axb5 25. gxf5 Qg5+ 26. Qxg5 hxg5 {½-½ Mamedyarov,S (2820)-Ding,L (2804) Olympiad-43 Batumi 2018 (9.1)} 1/2-1/2

[Event "1000GM Memorial Day NY IM-B 2023"]
[Site "New York"]
[Date "2023.05.29"]
[Round "8.1"]
[White "Lee, Alice"]
[Black "Luo, Terry"]
[Result "1/2-1/2"]
[ECO "D36"]
[WhiteElo "2391"]
[BlackElo "2321"]
[Annotator "TA"]
[PlyCount "48"]
[EventDate "2023.05.23"]
[EventType "schev"]
[EventCountry "USA"]
[SourceTitle "playchess.com"]
[Source "ChessBase"]
[SourceQuality "1"]
[TimeControl "5400+30"]

{[%evp 24,48,27,12,30,31,25,39,32,14,25,35,47,0,0,0,0,0,7,0,0,0,0,0,0,-7,-11]} 1. d4 {[%emt 0:04:10]} Nf6 {[%emt 0:00:12]} 2. c4 {[%emt 0:00:04]} e6 {[%emt 0:00:02]} 3. Nc3 {[%emt 0:00:06]} d5 {[%emt 0:00:02]} 4. cxd5 {[%emt 0:00:10]} exd5 {[%emt 0:00:03]} 5. Bg5 {[%emt 0:00:09]} Be7 {[%emt 0:00:12]} 6. e3 {[%emt 0:00:05]} h6 {[%emt 0:00:10]} 7. Bh4 {[%emt 0:00:05]} c6 {[%emt 0:00:13]} 8. Bd3 {[%emt 0:00:07]} O-O {[%emt 0:00:10]} 9. Nf3 {[%emt 0:00:38]} Nbd7 {[%emt 0:01:56]} 10. O-O {[%emt 0:00:25]} Ne4 {[%emt 0:05:03]} 11. Bxe7 {[%emt 0:01:22]} Qxe7 {[%emt 0:00:03]} 12. Qc2 {[%emt 0:01:07]} Re8 {[%emt 0:05:24] [#]} 13. b4 $1 {[%emt 0:05:05][%mdl 64] Deflection} Qxb4 {[%emt 0:12:23] D36: Queen's Gambit Declined: Exchange Variation: Main line (5 Bg5 c6 6 Qc2).} (13... Ndf6 14. b5) 14. Nxe4 {[%emt 0:00:42]} dxe4 {[%emt 0:00:05]} 15. Bxe4 {[%emt 0:00:05]} Nf6 {[%emt 0:00:07] White is slightly better.} 16. Rab1 {[%emt 0:06:07]} Qe7 {[%emt 0:06:18]} 17. Bd3 {[%emt 0:02:37]} Be6 {[%emt 0:00:21]} 18. Bc4 {[%emt 0:18:26]} Bxc4 {[%emt 0:13:43] The position is equal.} 19. Qxc4 {[%emt 0:00:03] [#]} Rac8 $146 {[%emt 0:00:30]} ({Predecessor:} 19... Ne4 20. Rb2 Rac8 21. Nd2 Nxd2 22. Rxd2 Red8 23. h3 Rd5 24. Rc1 Rcd8 25. Rb2 R8d7 {½-½ Duquesne,A (1939)-Buchy,D (2102) Small Paris-ch 2015 (3)}) 20. Rfc1 {[%emt 0:04:47]} Ne4 {[%emt 0:12:18]} 21. h3 {[%emt 0:18:53]} c5 {[%emt 0:03:05]} 22. Qd3 {[%emt 0:09:02]} Red8 {[%emt 0:04:57]} 23. Qa3 {[%emt 0:01:46]} b6 {[%emt 0:01:05]} 24. dxc5 {[%emt 0:00:31]} Rxc5 {[%emt 0:07:57] Weighted Error Value: White=0.07 (flawless) /Black=0.02 (flawless)} 1/2-1/2

[Event "1000GM Memorial Day NY IM-B 2023"]
[Site "New York"]
[Date "2023.05.29"]
[Round "8.2"]
[White "Ansh M Shah"]
[Black "Bisiriyu-Salam, Oluwaseun"]
[Result "1-0"]
[ECO "A51"]
[WhiteElo "2171"]
[BlackElo "2011"]
[Annotator "TA"]
[PlyCount "81"]
[EventDate "2023.05.23"]
[EventType "schev"]
[EventCountry "USA"]
[SourceTitle "playchess.com"]
[Source "ChessBase"]
[SourceQuality "1"]
[TimeControl "5400+30"]

{[%evp 9,81,-2,0,-2,10,9,22,22,35,17,21,2,10,24,0,0,7,8,28,0,23,-14,0,-17,0,-57,25,28,131,129,166,175,177,188,418,434,406,431,399,219,218,145,160,148,182,172,231,55,218,45,32,0,220,209,205,98,205,205,523,535,534,458,491,479,701,655,29955,29953,6463,5808,6175,6175,29971,12557]} 1. d4 {[%emt 0:11:52]} Nf6 {[%emt 0:44:19]} 2. c4 {[%emt 0:00:14]} e5 {[%emt 0:00:07]} 3. Nf3 {[%emt 0:03:18]} exd4 {[%emt 0:00:20]} 4. Nxd4 {[%emt 0:00:11]} d5 {[%emt 0:00:27]} 5. cxd5 {[%emt 0:01:49]} Qxd5 {[%emt 0:03:18]} 6. e3 {[%emt 0:05:36] A51: Budapest Gambit, Fajarowicz Variation.} Bb4+ {[%emt 0:01:42]} 7. Bd2 {[%emt 0:00:50]} Bxd2+ {[%emt 0:00:25]} 8. Qxd2 {[%emt 0:01:02] The position is equal.} Ne4 {[%emt 0:00:28] [#]} 9. Qc2 $146 {[%emt 0:10:16]} ({Predecessor:} 9. Nc3 Qe5 10. Nxe4 Qxe4 11. Nb5 Na6 12. Nc3 Qe6 13. Nd5 c6 14. Nf4 Qe7 15. Bxa6 bxa6 {1-0 Chazalette,J-Pettersson,S ICCF-Cup corr 1996}) 9... Qa5+ {[%emt 0:01:26]} 10. Nc3 {[%emt 0:02:06]} Nxc3 {[%emt 0:00:05]} 11. bxc3 {[%emt 0:00:08]} O-O {[%emt 0:00:18]} 12. Bd3 {[%emt 0:00:41][%cal Bf1d3,Bd3e4,Be4g6][%mdl 32]} h6 {[%emt 0:00:21]} 13. Rb1 {[%emt 0:04:05]} a6 {[%emt 0:00:04]} 14. Be4 {[%emt 0:02:36]} c5 {[%emt 0:00:44]} 15. Nf3 {[%emt 0:01:41]} (15. Bxb7 $2 Bxb7 16. Nf5 Qc7 $19) 15... Qc7 {[%emt 0:00:15]} 16. h4 {[%emt 0:02:30]} Ra7 {[%emt 0:00:30]} 17. Ng5 {[%emt 0:15:01]} g6 {[%emt 0:02:07]} (17... hxg5 $2 18. Bh7+ Kh8 19. hxg5 $18) ({Black should try} 17... Re8 $15 18. Nf3 Nd7) 18. Nf3 $11 {[%emt 0:09:46]} Be6 {[%emt 0:05:49] [#]} (18... b5 $11 {remains equal.}) 19. Bxg6 $1 $16 {[%emt 0:01:29][%mdl 512]} Kg7 {[%emt 0:00:47]} (19... b5 20. Bh7+) 20. Bf5 {[%emt 0:01:04]} Re8 {[%emt 0:05:24]} 21. Rh3 {[%emt 0:00:53]} Qa5 $2 {[%emt 0:04:09]} (21... Qf4) 22. Rg3+ $18 {[%emt 0:02:14]} Kf8 {[%emt 0:00:01]} 23. Bxe6 {[%emt 0:06:48]} Rxe6 {[%emt 0:00:04]} 24. Rd1 {[%emt 0:02:03] Wards off Nd7} (24. Qh7 Qxc3+ 25. Kf1 Nd7 $18) (24. Rc1 $142) 24... b5 {[%emt 0:01:27]} 25. Kf1 {[%emt 0:00:20][%cal Of3e5] Black must now prevent Ne5!} ({Don't do} 25. Qh7 $6 Qxc3+ 26. Rd2 (26. Kf1 Rd7 $11) 26... Ke7 $16) 25... Rd7 {[%emt 0:01:17]} 26. Kg1 {[%emt 0:01:09]} Qd8 {[%emt 0:00:13]} 27. Rxd7 {[%emt 0:00:21]} Qxd7 {[%emt 0:00:23]} (27... Nxd7 {keeps fighting.} 28. Qh7 Ke7) 28. Qf5 $2 {[%emt 0:00:56]} ({White should play} 28. Qh7 $18 Ke7 29. Rg8) 28... Qd6 $2 {[%emt 0:00:44] [#]} (28... Qd1+ $14 29. Kh2 Nd7) 29. h5 $2 {[%emt 0:08:21]} ({Better is} 29. Qh7 $1 $18 Ke7 30. Rg8) 29... Nd7 $14 {[%emt 0:01:21]} 30. Nh4 $40 {[%emt 0:03:24][%mdl 128] And now Ng6+ would win. White mounts an attack.} Rf6 {[%emt 0:01:13] Dodges Ng6+} (30... Qd1+ $11 {and Black is okay.} 31. Kh2 Rf6) 31. Qg4 $18 {[%emt 0:00:52] Threatens to win with Nf5.} Qe6 {[%emt 0:02:00] Prevents Nf5.} 32. Qg8+ {[%emt 0:00:32]} Ke7 {[%emt 0:00:05] [#]} 33. e4 $1 {[%emt 0:00:51]} Kd6 $2 {[%emt 0:02:35]} (33... Rf4 {is tougher.} 34. Nf5+ Rxf5 35. exf5 Qe1+ 36. Kh2 Qxf2) 34. Qa8 {[%emt 0:00:58]} Qxa2 {[%emt 0:01:30]} 35. Nf5+ {[%emt 0:00:22]} Rxf5 {[%emt 0:05:35]} 36. exf5 {[%emt 0:00:04] Strongly threatening Rd3+. KQR-KQN} ({Inferior is} 36. Rd3+ Ke7 37. Rxd7+ Kxd7 $11) 36... Qd5 {[%emt 0:01:49] Prevents Rd3} (36... Kc7 $142 37. Rg8 Kd6) 37. Qxa6+ {[%emt 0:00:25]} Ke7 {[%emt 0:00:24]} 38. f6+ {[%emt 0:02:06]} Nxf6 {[%emt 0:01:47]} 39. Re3+ {[%emt 0:00:02]} Ne4 {[%emt 0:00:24]} 40. f3 {[%emt 0:00:24][%mdl 64] Pin} f5 {[%emt 0:01:14]} 41. Qxh6 {[%emt 0:00:57] Weighted Error Value: White=0.30/Black=0.83} 1-0

[Event "1000GM Memorial Day NY IM-B 2023"]
[Site "New York"]
[Date "2023.05.29"]
[Round "8.3"]
[White "Pang, Qi"]
[Black "Chen, Justin"]
[Result "1/2-1/2"]
[ECO "E05"]
[WhiteElo "2165"]
[BlackElo "2333"]
[Annotator "TA"]
[PlyCount "44"]
[EventDate "2023.05.23"]
[EventType "schev"]
[EventCountry "USA"]
[SourceTitle "playchess.com"]
[Source "ChessBase"]
[SourceQuality "1"]
[TimeControl "5400+30"]

{[%evp 19,20,14,14]} 1. Nf3 {[%emt 0:00:30]} d5 {[%emt 0:00:13]} 2. d4 {[%emt 0:00:14]} Nf6 {[%emt 0:00:05]} 3. g3 {[%emt 0:00:11]} e6 {[%emt 0:00:17]} 4. Bg2 {[%emt 0:00:06]} Be7 {[%emt 0:00:06]} 5. O-O {[%emt 0:00:27]} O-O {[%emt 0:00:05]} 6. c4 {[%emt 0:01:10]} dxc4 {[%emt 0:00:15]} 7. Qc2 {[%emt 0:00:03]} a6 {[%emt 0:00:10]} 8. a4 {[%emt 0:00:18]} Bd7 {[%emt 0:00:08]} 9. Qxc4 {[%emt 0:00:30]} Bc6 {[%emt 0:00:05]} 10. Bg5 {[%emt 0:02:38]} Bd5 {[%emt 0:00:25] [#]} {Predecessor:} 11. Qc2 $146 {E05: Open Catalan: 5 Nf3 Be7.} Be4 12. Qc1 h6 13. Bxf6 Bxf6 14. Rd1 a5 15. Nbd2 Bh7 16. Nb3 Nd7 17. Ne5 c6 18. Qc3 Ra7 19. Nxa5 Bxe5 20. dxe5 Rxa5 21. Rxd7 Rxa4 22. Rxa4 Qxd7 {½-½ Carlsen,M (2859)-Aronian,L (2735) Tata Steel-A 85th 2023 (1)} 1/2-1/2

[Event "1000GM Memorial Day NY IM-B 2023"]
[Site "New York"]
[Date "2023.05.29"]
[Round "8.4"]
[White "Barbosa, Oliver"]
[Black "Espinosa, Pedro"]
[Result "1-0"]
[ECO "A09"]
[WhiteElo "2492"]
[BlackElo "2229"]
[Annotator "TA"]
[PlyCount "83"]
[EventDate "2023.05.23"]
[EventType "schev"]
[EventCountry "USA"]
[SourceTitle "playchess.com"]
[Source "ChessBase"]
[SourceQuality "1"]
[TimeControl "5400+30"]

{[%evp 9,83,-6,-10,-18,0,-32,-8,-8,13,-10,14,3,14,16,16,0,17,30,28,27,19,28,19,9,27,29,31,9,46,0,0,0,36,19,125,141,212,203,202,197,231,231,224,224,233,206,203,232,219,213,266,247,250,244,241,241,243,230,293,290,257,207,425,291,625,615,629,453,457,403,783,766,29996,29997,29997,29998]} 1. Nf3 {[%emt 0:05:21]} d5 {[%emt 0:00:10]} 2. g3 {[%emt 0:00:06]} g6 {[%emt 0:00:16]} 3. c4 {[%emt 0:00:31]} dxc4 {[%emt 0:01:15]} 4. Na3 {[%emt 0:01:04][%cal Bb1a3,Ba3c4,Bc4e3][%mdl 32]} Nc6 {[%emt 0:07:11]} 5. Nxc4 {[%emt 0:00:52]} Bg7 {[%emt 0:00:55]} 6. Bg2 {[%emt 0:00:06][%cal Od2d4] A09: Réti Opening: 1 Nf3 d5 2 c4.} e5 {[%emt 0:00:39]} 7. d3 {[%emt 0:00:10] [#]} e4 $1 {[%emt 0:04:47]} 8. dxe4 {[%emt 0:02:36] The position is equal.} Qxd1+ {[%emt 0:00:59]} 9. Kxd1 {[%emt 0:00:06] [#]} Be6 $146 {[%emt 0:00:13]} (9... Nf6 $5) ({Predecessor:} 9... Nf6 10. Ncd2 O-O 11. Ne1 Rd8 12. h3 a5 13. f4 Nh5 14. Bf3 Nxg3 15. Rg1 Nh5 16. Bxh5 gxh5 {0-1 Gukesh,D (2725)-Nihal,S (2670) Tata Steel India Blitz 2022 (13)}) 10. Ne3 {[%emt 0:01:38]} O-O-O+ {[%emt 0:01:57]} 11. Ke1 {[%emt 0:07:47]} h6 {[%emt 0:07:41] Repels Ng5} 12. Nd2 {[%emt 0:03:51]} Nb4 {[%emt 0:03:55]} 13. a3 {[%emt 0:01:44]} Na2 {[%emt 0:02:18]} 14. Ndc4 {[%emt 0:04:56]} Nxc1 {[%emt 0:11:18]} 15. Rxc1 {[%emt 0:00:33]} Ne7 {[%emt 0:07:27]} 16. a4 {[%emt 0:03:21]} Nc6 {[%emt 0:03:00]} 17. f4 {[%emt 0:02:25]} Bd4 {[%emt 0:04:55]} 18. h4 {[%emt 0:07:04][%cal Bh2h4,Bh4h5][%mdl 32]} Na5 {[%emt 0:06:01][%mdl 64] Deflection} 19. Bh3 {[%emt 0:01:14]} (19. b4 $14 Nxc4 20. Nxc4) 19... Bxh3 $11 {[%emt 0:03:51]} 20. Rxh3 {[%emt 0:00:07]} Rhe8 {[%emt 0:01:56]} (20... Nb3 $5 {[%cal Rb3c1]} 21. Rd1 h5 $11) 21. e5 {[%emt 0:01:23]} f6 {[%emt 0:03:58] White stays focused until the end.} (21... Nb3 $1 $11 {remains equal.} 22. Rc2 Na1) 22. h5 $1 $16 {[%emt 0:00:30] Black must now prevent Nd6+.} (22. Nxa5 Bxe3 23. Rd1 Bf2+ 24. Kxf2 Rxd1 $17) 22... g5 {[%emt 0:02:31] [#]} (22... Bxe3 $16 {is a better defense.} 23. Nxe3 gxh5) 23. Nf5 $1 $18 {[%emt 0:01:54] Hoping for Ncd6+.} ({Worse is} 23. Nxa5 Bxe3 24. Rc2 fxe5 $15) 23... Nxc4 {[%emt 0:03:53]} 24. Rxc4 {[%emt 0:00:07]} fxe5 {[%emt 0:01:09]} 25. fxg5 {[%emt 0:02:14]} hxg5 {[%emt 0:00:29]} 26. b4 {[%emt 0:02:31][%cal Bb2b4,Bb4c5][%mdl 32]} a6 {[%emt 0:02:25]} 27. e4 {[%emt 0:01:20]} b5 {[%emt 0:01:22]} 28. axb5 {[%emt 0:01:16]} axb5 {[%emt 0:01:06]} 29. Rc2 {[%emt 0:00:05]} Kd7 {[%emt 0:01:42]} 30. h6 {[%emt 0:01:34]} c5 {[%emt 0:04:16]} 31. bxc5 {[%emt 0:00:30] aiming for Nd6.} b4 {[%emt 0:00:27]} 32. Ke2 {[%emt 0:02:30]} b3 {[%emt 0:01:19] [#]} 33. Rc1 {[%emt 0:03:18]} Ra8 {[%emt 0:02:33]} 34. Rb1 {[%emt 0:04:43]} Reb8 {[%emt 0:06:43]} 35. Kf3 {[%emt 0:14:32]} Bxc5 $2 {[%emt 0:01:45]} (35... Kc6 36. h7 Kxc5) 36. Kg4 {[%emt 0:00:50]} Ke6 $2 {[%emt 0:01:11]} (36... Rb6 37. h7 (37. Kxg5 Rg8+ 38. Kh5 Rbg6 $16) 37... Rh8 38. Kxg5 Bb4 39. Rd1+ (39. Rxb3 Bd2+ {[%mdl 64] Discovered Attack} 40. Re3 Ke8 $16) 39... Kc8) 37. h7 {[%emt 0:01:56]} b2 {[%emt 0:00:42]} 38. Rh2 {[%emt 0:02:00]} Ba3 {[%emt 0:00:26]} 39. Kxg5 {[%emt 0:02:16] Rd1 would be deadly.} Rc8 {[%emt 0:00:15]} (39... Rh8 $142 40. Kg6 Ra7) 40. Rd1 {[%emt 0:01:53] Intending Rh6+ and mate.} Rc1 {[%emt 0:00:29]} 41. Rh6+ {[%emt 0:00:17]} (41. h8=R $2 {is the wrong capture.} Rxh8 42. Ng7+ Ke7 43. Nf5+ Kf7 $19) 41... Kf7 {[%emt 0:00:17]} 42. Rf6+ {[%emt 0:00:15] Excellently played by Barbosa!   Weighted Error Value: White=0.20 (precise) /Black=0.45} 1-0